[Event "Late-Titled-Tuesday-Blitz-June-25-2024"]
[Site "Chess.com"]
[Date "2024.06.25"]
[Round "8"]
[White "Oleksandr_Bortnyk"]
[Black "rasmussvane"]
[Result "1-0"]
[WhiteElo "3078"]
[BlackElo "2977"]
[TimeControl "180+1"]
[EndTime "15:28:23 PDT"]
[Termination "Oleksandr_Bortnyk won by resignation"]

1. e4 {[%clk 0:02:53.9]} 1... e5 {[%clk 0:02:59.6]} 2. Nf3 {[%clk 0:02:52.7]}
2... Nc6 {[%clk 0:02:59.4]} 3. Bb5 {[%clk 0:02:53]} 3... Nf6 {[%clk 0:02:56]} 4.
Qe2 {[%clk 0:02:53.3]} 4... Be7 {[%clk 0:02:48]} 5. O-O {[%clk 0:02:51.6]} 5...
O-O {[%clk 0:02:39.2]} 6. c3 {[%clk 0:02:51.8]} 6... d6 {[%clk 0:02:19.8]} 7.
Bxc6 {[%clk 0:02:51.9]} 7... bxc6 {[%clk 0:02:19.9]} 8. h3 {[%clk 0:02:52.8]}
8... c5 {[%clk 0:02:19.5]} 9. Rd1 {[%clk 0:02:48.5]} 9... Bb7 {[%clk 0:02:17.5]}
10. d3 {[%clk 0:02:47.2]} 10... h6 {[%clk 0:02:08.3]} 11. Na3 {[%clk 0:02:42.1]}
11... a5 {[%clk 0:02:06.8]} 12. Be3 {[%clk 0:02:38]} 12... Re8 {[%clk
0:02:05.8]} 13. Nd2 {[%clk 0:02:36.4]} 13... Bf8 {[%clk 0:02:04.4]} 14. Rf1
{[%clk 0:02:29.4]} 14... d5 {[%clk 0:01:58.2]} 15. exd5 {[%clk 0:02:24.8]} 15...
Nxd5 {[%clk 0:01:23.6]} 16. Rad1 {[%clk 0:02:00.9]} 16... Nf4 {[%clk 0:01:21.7]}
17. Bxf4 {[%clk 0:01:59.6]} 17... exf4 {[%clk 0:01:22.6]} 18. Qg4 {[%clk
0:02:00]} 18... Qxd3 {[%clk 0:01:20.8]} 19. Qxf4 {[%clk 0:01:55.2]} 19... Re6
{[%clk 0:01:07.5]} 20. Ndc4 {[%clk 0:01:43.7]} 20... Qg6 {[%clk 0:00:57.2]} 21.
f3 {[%clk 0:01:35.4]} 21... Bd6 {[%clk 0:00:55.3]} 22. Nxd6 {[%clk 0:01:33.5]}
22... cxd6 {[%clk 0:00:56.2]} 23. Rf2 {[%clk 0:01:29.4]} 23... d5 {[%clk
0:00:46.8]} 24. Nb5 {[%clk 0:01:23.3]} 24... Rc8 {[%clk 0:00:32.1]} 25. Kh2
{[%clk 0:01:00.7]} 25... Bc6 {[%clk 0:00:25.6]} 26. Na7 {[%clk 0:00:56.7]} 26...
Rd8 {[%clk 0:00:13.9]} 27. Qc7 {[%clk 0:00:55.4]} 27... Qf6 {[%clk 0:00:13.3]}
28. Qxa5 {[%clk 0:00:47.5]} 28... Qe7 {[%clk 0:00:12.5]} 29. Nxc6 {[%clk
0:00:44.7]} 29... Rxc6 {[%clk 0:00:12.9]} 30. Rxd5 {[%clk 0:00:28.2]} 30... Rxd5
{[%clk 0:00:09.8]} 31. Qa8+ {[%clk 0:00:28.9]} 31... Rd8 {[%clk 0:00:08.1]} 32.
Qxc6 {[%clk 0:00:28.8]} 32... Qe3 {[%clk 0:00:08.4]} 33. Qc7 {[%clk 0:00:18.7]}
33... Rd1 {[%clk 0:00:05.6]} 34. Qc8+ {[%clk 0:00:11.4]} 34... Kh7 {[%clk
0:00:05.7]} 35. Qf5+ {[%clk 0:00:12.3]} 35... Kg8 {[%clk 0:00:06.2]} 36. Qc2
{[%clk 0:00:12.9]} 36... Qe1 {[%clk 0:00:05.8]} 37. Re2 {[%clk 0:00:09.1]} 37...
Qg1+ {[%clk 0:00:06]} 38. Kg3 {[%clk 0:00:10]} 38... g6 {[%clk 0:00:06.3]} 39.
Qe4 {[%clk 0:00:07.4]} 39... Rd8 {[%clk 0:00:03.8]} 40. Qe3 {[%clk 0:00:07]}
40... Qd1 {[%clk 0:00:03.7]} 41. Kh2 {[%clk 0:00:05.8]} 41... Qd6+ {[%clk
0:00:03.9]} 42. f4 {[%clk 0:00:06.1]} 42... Ra8 {[%clk 0:00:03.5]} 43. a3 {[%clk
0:00:06.1]} 43... c4 {[%clk 0:00:03.3]} 44. Qd4 {[%clk 0:00:05.3]} 44... Qc6
{[%clk 0:00:03.2]} 45. Re4 {[%clk 0:00:02.5]} 45... Rc8 {[%clk 0:00:03.4]} 46.
Re2 {[%clk 0:00:02]} 46... Qc7 {[%clk 0:00:04]} 47. Rd2 {[%clk 0:00:02.4]} 47...
Re8 {[%clk 0:00:04.1]} 48. a4 {[%clk 0:00:02.6]} 48... Ra8 {[%clk 0:00:04.1]}
49. Qd7 {[%clk 0:00:02.3]} 49... Qxd7 {[%clk 0:00:03.9]} 50. Rxd7 {[%clk
0:00:03.2]} 50... Rxa4 {[%clk 0:00:04.5]} 51. Rb7 {[%clk 0:00:03.3]} 51... Ra1
{[%clk 0:00:04.3]} 52. Kg3 {[%clk 0:00:03.3]} 52... Rd1 {[%clk 0:00:03.6]} 53.
Rb4 {[%clk 0:00:03.4]} 53... Rd2 {[%clk 0:00:03]} 54. Kf3 {[%clk 0:00:04.3]}
54... Kg7 {[%clk 0:00:02.9]} 55. g4 {[%clk 0:00:04.2]} 55... Kf6 {[%clk
0:00:02.5]} 56. Ke3 {[%clk 0:00:03]} 56... Rd3+ {[%clk 0:00:01.4]} 57. Ke4
{[%clk 0:00:03.3]} 57... Rxh3 {[%clk 0:00:02.3]} 58. Rxc4 {[%clk 0:00:03.7]}
58... Rg3 {[%clk 0:00:03]} 59. Rc6+ {[%clk 0:00:02.3]} 59... Ke7 {[%clk
0:00:03.2]} 60. b4 {[%clk 0:00:03.2]} 60... Rxg4 {[%clk 0:00:03.5]} 61. b5
{[%clk 0:00:03.4]} 61... Rg1 {[%clk 0:00:03.2]} 62. b6 {[%clk 0:00:03.1]} 62...
Rb1 {[%clk 0:00:02.8]} 63. c4 {[%clk 0:00:03.3]} 63... h5 {[%clk 0:00:03.2]} 64.
Rc7+ {[%clk 0:00:02.7]} 64... Ke6 {[%clk 0:00:02.8]} 65. c5 {[%clk 0:00:03.2]}
65... h4 {[%clk 0:00:02.5]} 66. Kf3 {[%clk 0:00:01.7]} 66... f6 {[%clk
0:00:01.9]} 67. b7 {[%clk 0:00:01.9]} 67... Kf5 {[%clk 0:00:01.8]} 68. c6 {[%clk
0:00:01.7]} 68... h3 {[%clk 0:00:01.5]} 69. Rh7 {[%clk 0:00:01.8]} 69... Rb3+
{[%clk 0:00:01]} 70. Ke2 {[%clk 0:00:01.7]} 70... Rb2+ {[%clk 0:00:01]} 71. Kd3
{[%clk 0:00:02.1]} 71... Rb6 {[%clk 0:00:01.4]} 72. c7 {[%clk 0:00:02.4]} 72...
Rxb7 {[%clk 0:00:01.9]} 73. c8=Q+ {[%clk 0:00:03.3]} 1-0

[Event "Late-Titled-Tuesday-Blitz-June-25-2024"]
[Site "Chess.com"]
[Date "2024.06.25"]
[Round "8"]
[White "Statham_01"]
[Black "KebabJangles"]
[Result "1-0"]
[WhiteElo "2703"]
[BlackElo "2261"]
[TimeControl "180+1"]
[EndTime "15:28:23 PDT"]
[Termination "Statham_01 won by checkmate"]

1. e4 {[%clk 0:03:00.9]} 1... c5 {[%clk 0:02:59.3]} 2. a3 {[%clk 0:03:00.6]}
2... e6 {[%clk 0:02:54.9]} 3. b4 {[%clk 0:03:00.2]} 3... cxb4 {[%clk 0:02:54.8]}
4. axb4 {[%clk 0:03:01]} 4... Bxb4 {[%clk 0:02:54.6]} 5. Bb2 {[%clk 0:03:01.5]}
5... Nf6 {[%clk 0:02:54.3]} 6. e5 {[%clk 0:03:01.7]} 6... Nd5 {[%clk 0:02:54]}
7. c4 {[%clk 0:03:02.4]} 7... Nc7 {[%clk 0:02:50.6]} 8. Qg4 {[%clk 0:03:02.2]}
8... Bf8 {[%clk 0:02:45]} 9. Ra3 {[%clk 0:02:58.2]} 9... h5 {[%clk 0:02:38.9]}
10. Qf4 {[%clk 0:02:53.6]} 10... Nc6 {[%clk 0:02:36.2]} 11. Rf3 {[%clk
0:02:51.3]} 11... Qe7 {[%clk 0:02:30.2]} 12. Ba3 {[%clk 0:02:50.9]} 12... Nb4
{[%clk 0:02:25.9]} 13. Bxb4 {[%clk 0:02:39.6]} 13... Qxb4 {[%clk 0:02:25.5]} 14.
Qxf7+ {[%clk 0:02:40.3]} 14... Kd8 {[%clk 0:02:26]} 15. Nc3 {[%clk 0:02:40.9]}
15... Ne8 {[%clk 0:02:18.2]} 16. Bd3 {[%clk 0:02:36.6]} 16... Be7 {[%clk
0:02:13.9]} 17. Nge2 {[%clk 0:02:26.9]} 17... Qc5 {[%clk 0:02:10.4]} 18. O-O
{[%clk 0:02:13.2]} 18... Qxe5 {[%clk 0:02:03.5]} 19. Nf4 {[%clk 0:01:01.9]}
19... Nd6 {[%clk 0:01:31.7]} 20. Qxe7+ {[%clk 0:01:00.6]} 20... Kxe7 {[%clk
0:01:28.7]} 21. Ng6+ {[%clk 0:01:00.9]} 21... Kd8 {[%clk 0:01:29.1]} 22. Nxe5
{[%clk 0:01:01.8]} 22... Kc7 {[%clk 0:01:26.5]} 23. c5 {[%clk 0:01:02]} 23...
Ne8 {[%clk 0:01:24.9]} 24. Nb5+ {[%clk 0:01:02]} 24... Kb8 {[%clk 0:01:24]} 25.
Rb1 {[%clk 0:00:56.5]} 25... a6 {[%clk 0:01:21.9]} 26. Nd6 {[%clk 0:00:51.6]}
26... Nxd6 {[%clk 0:01:15.9]} 27. cxd6 {[%clk 0:00:52.5]} 27... b5 {[%clk
0:01:15.9]} 28. Bxb5 {[%clk 0:00:46.3]} 28... axb5 {[%clk 0:01:11.7]} 29. Rxb5+
{[%clk 0:00:47.2]} 29... Ka7 {[%clk 0:01:10.3]} 30. Rf7 {[%clk 0:00:15]} 30...
Rd8 {[%clk 0:01:04.1]} 31. Nc6+ {[%clk 0:00:14]} 31... Ka6 {[%clk 0:01:02.5]}
32. Ra5+ {[%clk 0:00:13.5]} 32... Kb6 {[%clk 0:01:02.2]} 33. Rxa8 {[%clk
0:00:12.7]} 33... Kxc6 {[%clk 0:01:01.2]} 34. Rxg7 {[%clk 0:00:11.3]} 34... Kxd6
{[%clk 0:01:01.6]} 35. h4 {[%clk 0:00:11.2]} 35... Kc7 {[%clk 0:01:00.6]} 36.
Rg5 {[%clk 0:00:10.7]} 36... Rf8 {[%clk 0:01:00.3]} 37. Rxh5 {[%clk 0:00:09.7]}
37... Rf4 {[%clk 0:01:00.3]} 38. Rc5+ {[%clk 0:00:09.6]} 38... Kd6 {[%clk
0:00:59.7]} 39. Raxc8 {[%clk 0:00:09.3]} 39... Rxh4 {[%clk 0:01:00.3]} 40. g3
{[%clk 0:00:09.6]} 40... Rd4 {[%clk 0:01:00.6]} 41. Rc2 {[%clk 0:00:09.7]} 41...
Rb4 {[%clk 0:01:00.6]} 42. R8c3 {[%clk 0:00:10.5]} 42... Rb1+ {[%clk 0:01:00.7]}
43. Kg2 {[%clk 0:00:11.4]} 43... Ke7 {[%clk 0:01:00.6]} 44. Rd3 {[%clk
0:00:11.1]} 44... d5 {[%clk 0:01:01.1]} 45. Rc6 {[%clk 0:00:10.8]} 45... d4
{[%clk 0:01:01.3]} 46. Rxd4 {[%clk 0:00:10.9]} 46... e5 {[%clk 0:01:01.8]} 47.
Re4 {[%clk 0:00:10.9]} 47... Kf7 {[%clk 0:01:01.7]} 48. Rxe5 {[%clk 0:00:11.2]}
48... Rb7 {[%clk 0:01:01]} 49. Rce6 {[%clk 0:00:11.7]} 49... Kg7 {[%clk
0:01:01.4]} 50. Re7+ {[%clk 0:00:12]} 50... Kf6 {[%clk 0:00:59.5]} 51. Rxb7
{[%clk 0:00:11.2]} 51... Kxe5 {[%clk 0:01:00.4]} 52. Rb3 {[%clk 0:00:11.2]}
52... Kd4 {[%clk 0:01:01.3]} 53. Re3 {[%clk 0:00:11.5]} 53... Kc4 {[%clk
0:01:01.3]} 54. g4 {[%clk 0:00:11.5]} 54... Kd4 {[%clk 0:01:02.2]} 55. g5 {[%clk
0:00:12.4]} 55... Kc4 {[%clk 0:01:03.1]} 56. g6 {[%clk 0:00:13.3]} 56... Kd4
{[%clk 0:01:04]} 57. g7 {[%clk 0:00:14.2]} 57... Kd5 {[%clk 0:01:04.4]} 58. f4
{[%clk 0:00:14.9]} 58... Kd4 {[%clk 0:01:05.3]} 59. f5 {[%clk 0:00:15.8]} 59...
Kc4 {[%clk 0:01:06.2]} 60. f6 {[%clk 0:00:16.7]} 60... Kd4 {[%clk 0:01:07.1]}
61. f7 {[%clk 0:00:17.6]} 61... Kd5 {[%clk 0:01:07.3]} 62. Kf2 {[%clk
0:00:18.3]} 62... Kc4 {[%clk 0:01:08.2]} 63. Ke2 {[%clk 0:00:19.2]} 63... Kd4
{[%clk 0:01:09.1]} 64. Kf3 {[%clk 0:00:20.1]} 64... Kd5 {[%clk 0:01:10]} 65. Kf4
{[%clk 0:00:21]} 65... Kd4 {[%clk 0:01:10.9]} 66. Kf5 {[%clk 0:00:21.9]} 66...
Kc4 {[%clk 0:01:11.8]} 67. Kf6 {[%clk 0:00:22.8]} 67... Kd5 {[%clk 0:01:12.7]}
68. Kg6 {[%clk 0:00:23.7]} 68... Kc4 {[%clk 0:01:13.6]} 69. Kh7 {[%clk
0:00:24.6]} 69... Kd5 {[%clk 0:01:14.5]} 70. Kh8 {[%clk 0:00:25.5]} 70... Kc5
{[%clk 0:01:15.4]} 71. g8=Q {[%clk 0:00:26.4]} 71... Kc4 {[%clk 0:01:16.3]} 72.
Kg7 {[%clk 0:00:27.3]} 72... Kd5 {[%clk 0:01:17.2]} 73. Kf8 {[%clk 0:00:28.2]}
73... Kd4 {[%clk 0:01:18.1]} 74. Ke8 {[%clk 0:00:29.1]} 74... Kd5 {[%clk
0:01:19]} 75. f8=Q+ {[%clk 0:00:30]} 75... Kd4 {[%clk 0:01:19.1]} 76. Qgg7+
{[%clk 0:00:26.1]} 76... Kc4 {[%clk 0:01:20]} 77. Qff7+ {[%clk 0:00:25.3]} 77...
Kc5 {[%clk 0:01:19.8]} 78. Qc3+ {[%clk 0:00:24]} 78... Kb5 {[%clk 0:01:19.6]}
79. Qfb3+ {[%clk 0:00:24]} 79... Ka6 {[%clk 0:01:19.5]} 80. Qcb2 {[%clk
0:00:24]} 80... Ka7 {[%clk 0:01:19.8]} 81. Re1 {[%clk 0:00:24.9]} 81... Ka6
{[%clk 0:01:19.7]} 82. Rb1 {[%clk 0:00:25.8]} 82... Ka5 {[%clk 0:01:20.2]} 83.
Ke7 {[%clk 0:00:25.8]} 83... Ka6 {[%clk 0:01:21.1]} 84. Ke6 {[%clk 0:00:26.7]}
84... Ka7 {[%clk 0:01:22]} 85. Kd5 {[%clk 0:00:27.6]} 85... Ka6 {[%clk
0:01:22.9]} 86. Kd4 {[%clk 0:00:28.5]} 86... Ka7 {[%clk 0:01:23.8]} 87. Kc4
{[%clk 0:00:29.4]} 87... Ka6 {[%clk 0:01:24.7]} 88. Kc3 {[%clk 0:00:30.3]} 88...
Ka7 {[%clk 0:01:25.6]} 89. Q2c2 {[%clk 0:00:30.3]} 89... Ka6 {[%clk 0:01:26.5]}
90. Kb2 {[%clk 0:00:31.2]} 90... Ka7 {[%clk 0:01:27.4]} 91. Ka3 {[%clk
0:00:32.1]} 91... Ka6 {[%clk 0:01:28.3]} 92. Ka4 {[%clk 0:00:32.3]} 92... Ka7
{[%clk 0:01:29.2]} 93. Ka5 {[%clk 0:00:32.3]} 93... Ka8 {[%clk 0:01:29.5]} 94.
Ra1 {[%clk 0:00:27.3]} 94... Ka7 {[%clk 0:01:26.7]} 95. d4 {[%clk 0:00:28.2]}
95... Ka8 {[%clk 0:01:26.7]} 96. d5 {[%clk 0:00:29.1]} 96... Ka7 {[%clk
0:01:27.2]} 97. d6 {[%clk 0:00:30]} 97... Ka8 {[%clk 0:01:27.9]} 98. d7 {[%clk
0:00:30.9]} 98... Ka7 {[%clk 0:01:28.5]} 99. Ka4 {[%clk 0:00:29]} 99... Ka6
{[%clk 0:01:28.7]} 100. Ka3 {[%clk 0:00:29.9]} 100... Ka5 {[%clk 0:01:28.9]}
101. d8=Q+ {[%clk 0:00:28.2]} 101... Ka6 {[%clk 0:01:27.9]} 102. Qdd1 {[%clk
0:00:28.5]} 102... Ka5 {[%clk 0:01:27.3]} 103. Qdb1 {[%clk 0:00:24.1]} 103...
Ka6 {[%clk 0:01:28.2]} 104. Qca2 {[%clk 0:00:18]} 104... Ka5 {[%clk 0:01:29.1]}
105. Qb4+ {[%clk 0:00:12]} 105... Ka6 {[%clk 0:01:30]} 106. Q4b3 {[%clk
0:00:06.5]} 106... Ka5 {[%clk 0:01:30.9]} 107. Kb2# {[%clk 0:00:07.4]} 1-0

[Event "Late-Titled-Tuesday-Blitz-June-25-2024"]
[Site "Chess.com"]
[Date "2024.06.25"]
[Round "8"]
[White "canary2016"]
[Black "Onthequiet"]
[Result "1/2-1/2"]
[WhiteElo "2224"]
[BlackElo "2300"]
[TimeControl "180+1"]
[EndTime "15:28:30 PDT"]
[Termination "Game drawn by repetition"]

1. d4 {[%clk 0:03:00.9]} 1... c6 {[%clk 0:03:00.4]} 2. c4 {[%clk 0:03:00.6]}
2... d5 {[%clk 0:03:00.8]} 3. Nf3 {[%clk 0:03:00.4]} 3... Nf6 {[%clk 0:03:01]}
4. g3 {[%clk 0:03:00.3]} 4... a6 {[%clk 0:03:01.4]} 5. Bg2 {[%clk 0:02:59.8]}
5... b5 {[%clk 0:03:01.9]} 6. cxb5 {[%clk 0:02:54.5]} 6... axb5 {[%clk
0:03:01.9]} 7. O-O {[%clk 0:02:53.1]} 7... Bf5 {[%clk 0:03:00.3]} 8. Nc3 {[%clk
0:02:52.5]} 8... e6 {[%clk 0:02:59.5]} 9. Bf4 {[%clk 0:02:51.6]} 9... Nbd7
{[%clk 0:02:57.8]} 10. Ne5 {[%clk 0:02:48.4]} 10... Nxe5 {[%clk 0:02:56.4]} 11.
Bxe5 {[%clk 0:02:48.1]} 11... Bb4 {[%clk 0:02:55.2]} 12. Qb3 {[%clk 0:02:45.9]}
12... Be7 {[%clk 0:02:38.1]} 13. a4 {[%clk 0:02:36.8]} 13... b4 {[%clk
0:02:37.4]} 14. Na2 {[%clk 0:02:34.3]} 14... Qa5 {[%clk 0:02:34.3]} 15. Nc1
{[%clk 0:02:30.5]} 15... O-O {[%clk 0:02:29.9]} 16. Nd3 {[%clk 0:02:30.4]} 16...
Bxd3 {[%clk 0:02:19.8]} 17. Qxd3 {[%clk 0:02:30.1]} 17... c5 {[%clk 0:02:17.9]}
18. dxc5 {[%clk 0:02:28.3]} 18... Bxc5 {[%clk 0:02:16.1]} 19. Bxf6 {[%clk
0:02:26.4]} 19... gxf6 {[%clk 0:02:16]} 20. Rfc1 {[%clk 0:02:22.8]} 20... Rac8
{[%clk 0:02:13.3]} 21. Qf3 {[%clk 0:02:17.1]} 21... Be7 {[%clk 0:02:11.1]} 22.
Qg4+ {[%clk 0:02:12.2]} 22... Kh8 {[%clk 0:02:10.4]} 23. e4 {[%clk 0:02:02.6]}
23... dxe4 {[%clk 0:02:03.7]} 24. Qxe4 {[%clk 0:02:02.5]} 24... Rxc1+ {[%clk
0:01:40.3]} 25. Rxc1 {[%clk 0:02:01.8]} 25... Qxa4 {[%clk 0:01:40.4]} 26. Rc7
{[%clk 0:01:53.3]} 26... Qd1+ {[%clk 0:01:30.5]} 27. Bf1 {[%clk 0:01:52.9]}
27... Qd6 {[%clk 0:01:29.9]} 28. Qb7 {[%clk 0:01:49.5]} 28... Bd8 {[%clk
0:01:09.9]} 29. Rxf7 {[%clk 0:01:43.8]} 29... Rxf7 {[%clk 0:01:08.6]} 30. Qxf7
{[%clk 0:01:43.4]} 30... Qe7 {[%clk 0:01:08.9]} 31. Qh5 {[%clk 0:01:39.3]} 31...
f5 {[%clk 0:01:04.7]} 32. Qe2 {[%clk 0:01:35.5]} 32... Kg7 {[%clk 0:01:02.5]}
33. Qc4 {[%clk 0:01:32.9]} 33... Bb6 {[%clk 0:00:56.3]} 34. Qc6 {[%clk 0:01:29]}
34... Bd4 {[%clk 0:00:52.1]} 35. b3 {[%clk 0:01:23.2]} 35... Kf6 {[%clk
0:00:47.3]} 36. Bc4 {[%clk 0:01:22.7]} 36... h5 {[%clk 0:00:40.5]} 37. Qf3
{[%clk 0:01:20.7]} 37... h4 {[%clk 0:00:32.7]} 38. Qh5 {[%clk 0:01:13.7]} 38...
Ke5 {[%clk 0:00:28.4]} 39. Qh8+ {[%clk 0:01:01.6]} 39... Ke4 {[%clk 0:00:27.5]}
40. Qxh4+ {[%clk 0:00:48]} 40... Qxh4 {[%clk 0:00:27.2]} 41. gxh4 {[%clk
0:00:48.9]} 41... e5 {[%clk 0:00:27.8]} 42. Kg2 {[%clk 0:00:48.1]} 42... Kf4
{[%clk 0:00:24.7]} 43. h5 {[%clk 0:00:45.4]} 43... Kg5 {[%clk 0:00:23.2]} 44.
Bf7 {[%clk 0:00:45.2]} 44... e4 {[%clk 0:00:17.9]} 45. Kf1 {[%clk 0:00:36]}
45... f4 {[%clk 0:00:16.5]} 46. Ke2 {[%clk 0:00:32.8]} 46... f3+ {[%clk
0:00:15.8]} 47. Kf1 {[%clk 0:00:31.8]} 47... Be5 {[%clk 0:00:14.8]} 48. h3
{[%clk 0:00:28]} 48... Kf4 {[%clk 0:00:14.3]} 49. Bg6 {[%clk 0:00:25.7]} 49...
e3 {[%clk 0:00:14]} 50. fxe3+ {[%clk 0:00:24.2]} 50... Kxe3 {[%clk 0:00:14.9]}
51. h6 {[%clk 0:00:21.4]} 51... Bf6 {[%clk 0:00:14.2]} 52. h7 {[%clk 0:00:18.9]}
52... Bh8 {[%clk 0:00:14.6]} 53. h4 {[%clk 0:00:16.2]} 53... Be5 {[%clk
0:00:14.9]} 54. h5 {[%clk 0:00:16]} 54... Bh8 {[%clk 0:00:15.8]} 55. Be8 {[%clk
0:00:13.3]} 55... Be5 {[%clk 0:00:16.7]} 56. Bb5 {[%clk 0:00:09.5]} 56... Bh8
{[%clk 0:00:17.6]} 57. Bc4 {[%clk 0:00:05.6]} 57... Bd4 {[%clk 0:00:17.7]} 58.
Bf7 {[%clk 0:00:04.8]} 58... Kf4 {[%clk 0:00:17.9]} 59. Bg6 {[%clk 0:00:04.5]}
59... Kg5 {[%clk 0:00:18]} 60. Ke1 {[%clk 0:00:03.4]} 60... Kg4 {[%clk
0:00:17.8]} 61. Kf1 {[%clk 0:00:02.4]} 61... Kg3 {[%clk 0:00:18.2]} 62. Bf7
{[%clk 0:00:01.7]} 62... Kh4 {[%clk 0:00:17.9]} 63. Bg6 {[%clk 0:00:01.9]} 63...
Kg5 {[%clk 0:00:18.2]} 64. Be8 {[%clk 0:00:01.9]} 64... Kf4 {[%clk 0:00:18.3]}
65. Bg6 {[%clk 0:00:02.2]} 65... Ke3 {[%clk 0:00:19.2]} 66. Bf7 {[%clk
0:00:02.2]} 66... Be5 {[%clk 0:00:18.9]} 67. Bg6 {[%clk 0:00:03.1]} 67... Bf6
{[%clk 0:00:19]} 68. Bf7 {[%clk 0:00:03.5]} 68... Bg7 {[%clk 0:00:19.9]} 69. Bg6
{[%clk 0:00:04]} 69... Bh8 {[%clk 0:00:20.8]} 70. Bf7 {[%clk 0:00:04.4]} 70...
Kf4 {[%clk 0:00:20.9]} 71. Bg6 {[%clk 0:00:05.1]} 71... Ke5 {[%clk 0:00:21.8]}
72. Bf7 {[%clk 0:00:05.5]} 72... Kf6 {[%clk 0:00:22.7]} 73. Bg6 {[%clk 0:00:06]}
73... Ke5 {[%clk 0:00:23]} 74. Be8 {[%clk 0:00:06.4]} 74... Kf4 {[%clk
0:00:22.8]} 75. Bg6 {[%clk 0:00:06.8]} 75... Kg3 {[%clk 0:00:23.7]} 76. Bf7
{[%clk 0:00:07.2]} 76... Be5 {[%clk 0:00:24]} 77. Bg6 {[%clk 0:00:07.6]} 77...
Bh8 {[%clk 0:00:24.9]} 78. Bf7 {[%clk 0:00:08]} 78... Bd4 {[%clk 0:00:25.7]} 79.
Be8 {[%clk 0:00:08.5]} 79... Bc3 {[%clk 0:00:26.6]} 80. Bf7 {[%clk 0:00:08.8]}
80... Bh8 {[%clk 0:00:27.5]} 81. Bg6 {[%clk 0:00:09.2]} 81... Bb2 {[%clk
0:00:28.2]} 82. Bf7 {[%clk 0:00:09.4]} 82... Bh8 {[%clk 0:00:29.1]} 83. Be8
{[%clk 0:00:09.6]} 83... Bd4 {[%clk 0:00:29.9]} 84. Bf7 {[%clk 0:00:10]} 84...
Bh8 {[%clk 0:00:30.8]} 1/2-1/2

[Event "Late-Titled-Tuesday-Blitz-June-25-2024"]
[Site "Chess.com"]
[Date "2024.06.25"]
[Round "8"]
[White "JuliaEfremova"]
[Black "wild3000"]
[Result "1-0"]
[WhiteElo "2312"]
[BlackElo "2499"]
[TimeControl "180+1"]
[EndTime "15:28:39 PDT"]
[Termination "JuliaEfremova won on time"]

1. e4 {[%clk 0:03:00.9]} 1... a5 {[%clk 0:02:02.2]} 2. d4 {[%clk 0:02:57.5]}
2... a4 {[%clk 0:02:02.4]} 3. a3 {[%clk 0:02:56.6]} 3... h5 {[%clk 0:02:01.8]}
4. Nf3 {[%clk 0:02:55.2]} 4... e6 {[%clk 0:02:01.4]} 5. Bd3 {[%clk 0:02:53.5]}
5... h4 {[%clk 0:02:00.8]} 6. h3 {[%clk 0:02:52.1]} 6... Be7 {[%clk 0:02:00.4]}
7. Qe2 {[%clk 0:02:50.7]} 7... b6 {[%clk 0:02:00.4]} 8. Nc3 {[%clk 0:02:44.2]}
8... Nf6 {[%clk 0:01:57.4]} 9. e5 {[%clk 0:02:43.9]} 9... Nd5 {[%clk 0:01:57.2]}
10. Nxd5 {[%clk 0:02:43]} 10... exd5 {[%clk 0:01:58.1]} 11. c3 {[%clk
0:02:35.6]} 11... Ba6 {[%clk 0:01:51.8]} 12. Bxa6 {[%clk 0:02:30.5]} 12... Rxa6
{[%clk 0:01:52.7]} 13. Be3 {[%clk 0:02:23.1]} 13... O-O {[%clk 0:01:49.8]} 14.
Qd2 {[%clk 0:02:12.1]} 14... d6 {[%clk 0:01:47.6]} 15. O-O {[%clk 0:02:03.2]}
15... dxe5 {[%clk 0:01:46.5]} 16. Nxe5 {[%clk 0:01:59.3]} 16... b5 {[%clk
0:01:39.9]} 17. Rae1 {[%clk 0:01:46.4]} 17... Nd7 {[%clk 0:01:36.1]} 18. Bf4
{[%clk 0:01:42.1]} 18... Nxe5 {[%clk 0:01:31.1]} 19. Bxe5 {[%clk 0:01:34.3]}
19... Rg6 {[%clk 0:01:28.1]} 20. Qd3 {[%clk 0:01:25.2]} 20... c6 {[%clk
0:01:24.7]} 21. Re2 {[%clk 0:01:22.9]} 21... Bd6 {[%clk 0:01:15.5]} 22. Rfe1
{[%clk 0:01:22.1]} 22... Bxe5 {[%clk 0:01:15.6]} 23. Rxe5 {[%clk 0:01:21.5]}
23... Qf6 {[%clk 0:01:10.3]} 24. Rf5 {[%clk 0:01:16.7]} 24... Qd6 {[%clk
0:01:07.4]} 25. Rh5 {[%clk 0:01:12.1]} 25... Qf4 {[%clk 0:01:03.7]} 26. Qe3
{[%clk 0:00:57.9]} 26... Qf6 {[%clk 0:00:48.2]} 27. Qe5 {[%clk 0:00:54.2]} 27...
Qxe5 {[%clk 0:00:42.3]} 28. Rexe5 {[%clk 0:00:52.6]} 28... Rh6 {[%clk
0:00:34.1]} 29. Rxh6 {[%clk 0:00:50.9]} 29... gxh6 {[%clk 0:00:35]} 30. Re7
{[%clk 0:00:46.6]} 30... Rd8 {[%clk 0:00:31.3]} 31. Rc7 {[%clk 0:00:44.5]} 31...
Rd6 {[%clk 0:00:31.3]} 32. Kf1 {[%clk 0:00:44.2]} 32... Kg7 {[%clk 0:00:31]} 33.
Re7 {[%clk 0:00:31.5]} 33... Kg6 {[%clk 0:00:28.1]} 34. f3 {[%clk 0:00:23.5]}
34... Re6 {[%clk 0:00:24]} 35. Rc7 {[%clk 0:00:21.3]} 35... f6 {[%clk
0:00:20.7]} 36. Kf2 {[%clk 0:00:21.4]} 36... h5 {[%clk 0:00:20.5]} 37. Rc8
{[%clk 0:00:21.3]} 37... Kg7 {[%clk 0:00:20]} 38. Rc7+ {[%clk 0:00:21.3]} 38...
Kg6 {[%clk 0:00:18.8]} 39. Rc8 {[%clk 0:00:20.4]} 39... f5 {[%clk 0:00:19]} 40.
f4 {[%clk 0:00:19.4]} 40... Kh6 {[%clk 0:00:15.6]} 41. Rf8 {[%clk 0:00:18.3]}
41... Kg6 {[%clk 0:00:15.1]} 42. Rg8+ {[%clk 0:00:18.5]} 42... Kh6 {[%clk
0:00:15.3]} 43. Rg5 {[%clk 0:00:18.7]} 43... Rf6 {[%clk 0:00:12]} 44. Rg8 {[%clk
0:00:18.4]} 44... Kh7 {[%clk 0:00:11]} 45. Re8 {[%clk 0:00:18.7]} 45... Kh6
{[%clk 0:00:10.1]} 46. Kf3 {[%clk 0:00:18.5]} 46... Kg6 {[%clk 0:00:10.1]} 47.
Re5 {[%clk 0:00:18.7]} 47... Kf7 {[%clk 0:00:09.1]} 48. g3 {[%clk 0:00:17.6]}
48... hxg3 {[%clk 0:00:08.9]} 49. Kxg3 {[%clk 0:00:18.5]} 49... Rg6+ {[%clk
0:00:08.4]} 50. Kh4 {[%clk 0:00:17.1]} 50... Kf6 {[%clk 0:00:08.5]} 51. Kxh5
{[%clk 0:00:16.1]} 51... Rg8 {[%clk 0:00:08]} 52. Kh4 {[%clk 0:00:14.6]} 52...
Rg2 {[%clk 0:00:07.8]} 53. Re8 {[%clk 0:00:13.7]} 53... Rxb2 {[%clk 0:00:08.7]}
54. Rc8 {[%clk 0:00:14.3]} 54... Rb3 {[%clk 0:00:07.5]} 55. Rxc6+ {[%clk
0:00:14.9]} 55... Kf7 {[%clk 0:00:07.5]} 56. Kg5 {[%clk 0:00:15.1]} 56... Rxa3
{[%clk 0:00:07.3]} 57. Kxf5 {[%clk 0:00:15]} 57... Ra1 {[%clk 0:00:07]} 58. Rc7+
{[%clk 0:00:15.5]} 58... Ke8 {[%clk 0:00:06.8]} 59. Ke6 {[%clk 0:00:14.7]} 59...
Re1+ {[%clk 0:00:06]} 60. Kxd5 {[%clk 0:00:14.8]} 60... Re3 {[%clk 0:00:05.7]}
61. f5 {[%clk 0:00:12.3]} 61... Rxh3 {[%clk 0:00:05]} 62. f6 {[%clk 0:00:12.8]}
62... a3 {[%clk 0:00:04.7]} 63. Ke6 {[%clk 0:00:06.6]} 63... Re3+ {[%clk
0:00:04.3]} 64. Kd6 {[%clk 0:00:06.2]} 64... a2 {[%clk 0:00:04.3]} 65. Ra7
{[%clk 0:00:05.6]} 65... Rxc3 {[%clk 0:00:03.9]} 66. Rxa2 {[%clk 0:00:06.1]}
66... b4 {[%clk 0:00:03.9]} 67. Ra7 {[%clk 0:00:04.6]} 67... b3 {[%clk
0:00:03.7]} 68. Rb7 {[%clk 0:00:05.2]} 68... Rf3 {[%clk 0:00:02.6]} 69. Ke5
{[%clk 0:00:02.2]} 69... Re3+ {[%clk 0:00:01.5]} 70. Kd6 {[%clk 0:00:02]} 70...
Rf3 {[%clk 0:00:01.2]} 71. Ke6 {[%clk 0:00:01.9]} 1-0